bitfinex/quotes_ETHUSD_20220101
["timestamp","ask_amount","ask_price","bid_price","bid_amount"]
[1641057785635,0.67007,3731.6,3731.4,0.00284211]
[1641057785839,3.1,3731.5,3731.4,0.00284211]
[1641057786036,3.1,3731.5,3730.8,1.81772518]
[1641057786037,3.1,3731.5,3730.9,0.00568423]
[1641057786535,3.04573531,3731.4,3730.9,0.00568423]
[1641057786736,1.37771574,3731.0,3730.9,0.00568423]
[1641057787784,1.37771574,3731.0,3730.8,0.00625265]
[1641057787987,0.67022,3730.9,3730.8,0.00625265]
[1641057788589,3.71595531,3730.9,3730.7,0.00682108]
[1641057789587,3.04573531,3730.8,3730.7,0.00682108]
[1641057791828,3.04573531,3730.9,3730.7,0.00682108]
[1641057792229,3.04573531,3731.2,3730.7,0.00682108]
[1641057792430,4.23610061,3731.2,3730.6,1.82511468]
[1641057792634,4.23610061,3731.2,3730.8,0.67013]
[1641057793029,4.23610061,3731.2,3730.9,0.00568423]
[1641057793231,3.04573531,3731.2,3730.9,0.00568423]
[1641057793631,1.36124783,3731.5,3730.7,0.00682108]
[1641057793632,3.04573531,3730.8,3730.7,0.00682108]
[1641057794131,3.04573531,3731.1,3730.8,0.67012]
[1641057794331,3.04573531,3731.1,3730.9,1.29376722]
[1641057794531,3.04573531,3731.1,3730.9,1.29945145]
[1641057794788,1.36124783,3731.5,3731.0,0.00511581]
[1641057795193,2.03132783,3731.6,3731.0,0.00511581]
[1641057795586,2.03132783,3731.6,3731.2,0.67008]
[1641057795787,2.03135783,3731.6,3731.0,0.00511581]
[1641057795984,2.03135783,3731.6,3730.9,1.29376722]
[1641057795985,0.67013,3731.4,3731.3,0.00341054]
[1641057796185,1.34033,3731.5,3731.0,0.00511581]
[1641057796387,1.34033,3731.5,3730.9,0.00568423]
[1641057796589,1.34033,3731.5,3730.7,1.81772518]
[1641057796590,0.6701755,3731.3,3730.8,0.00625265]
[1641057796786,1.34033,3731.5,3730.8,0.00625265]
[1641057796787,0.67021,3731.1,3730.8,1.82397783]
[1641057797187,1.67875682,3731.1,3730.9,0.00568423]
[1641057797388,2.34896682,3731.1,3730.9,0.00568423]
[1641057797789,2.34896682,3731.1,3730.7,0.00682108]
[1641057797988,0.67022,3730.9,3730.6,0.0073895]
[1641057799249,3.37022,3730.9,3730.6,0.0073895]
[1641057800248,2.7,3730.9,3730.6,0.0073895]
[1641057802484,2.7,3730.9,3730.6,0.6775695]
[1641057802886,2.7,3730.9,3730.7,0.00682108]
[1641057806733,2.7,3730.9,3730.6,0.0073895]
[1641057806934,0.67023,3730.8,3730.6,0.0073895]
[1641057807539,0.67023,3730.8,3730.5,0.00795793]
[1641057809443,2.7,3730.9,3730.5,0.67815793]
[1641057809882,2.7,3730.9,3730.6,0.0073895]
[1641057810481,2.7,3730.9,3730.5,0.00795793]
[1641057811482,2.7,3730.9,3730.7,0.67015]
[1641057811883,2.7,3730.9,3730.8,0.00625265]
[1641057813084,5.74599595,3730.9,3730.8,0.00625265]
[1641057815336,5.74599595,3730.9,3730.6,0.0073895]
[1641057816338,3.04599595,3730.8,3730.6,0.0073895]
[1641057817142,3.04599595,3730.8,3730.6,0.6775795]
[1641057817589,3.04599595,3730.8,3730.7,0.00682108]
[1641057818795,3.04599595,3730.8,3730.6,0.0073895]
[1641057819194,3.04599595,3730.8,3730.4,1.87241564]
[1641057819195,3.04599595,3730.8,3730.5,0.00795793]
[1641057819693,3.71623595,3730.8,3730.5,0.00795793]
[1641057820492,4.38648595,3730.8,3730.5,0.00795793]
[1641057820895,3.71623595,3730.8,3730.5,0.00795793]
[1641057821142,3.04599595,3730.7,3730.5,0.00795793]
[1641057821943,3.04599595,3730.7,3730.5,0.67817793]
[1641057822143,3.04599595,3730.8,3730.5,0.67817793]
[1641057822346,3.04599595,3730.8,3730.6,0.0073895]
[1641057822647,3.71622595,3730.8,3730.6,0.0073895]
[1641057823045,3.04599595,3730.7,3730.6,0.0073895]
[1641057824781,4.27027658,3730.7,3730.6,0.0073895]
[1641057825786,4.27027658,3730.7,3730.3,0.00909477]
[1641057825986,4.94053658,3730.7,3730.3,0.00909477]
[1641057826590,3.04599595,3730.6,3730.3,0.00909477]
[1641057827890,3.71626595,3730.6,3730.3,0.00909477]
[1641057828190,3.71626595,3730.6,3730.2,0.0096632]
[1641057828638,4.38653595,3730.6,3730.2,0.0096632]
[1641057828838,3.04599595,3730.5,3730.2,0.0096632]
[1641057831543,3.04599595,3730.5,3730.2,0.6799132]
[1641057831947,3.04599595,3730.5,3730.3,0.00909477]
[1641057833088,3.71626595,3730.6,3730.3,0.00909477]
[1641057833586,0.67027,3730.6,3730.3,0.00909477]
[1641057834190,3.04625215,3730.5,3730.3,0.00909477]
[1641057834791,3.04625215,3730.5,3730.2,0.50588777]
[1641057835191,0.67029,3730.4,3730.1,0.67028]
[1641057835791,0.67029,3730.4,3729.9,1.81772518]
[1641057835792,3.04625215,3730.3,3729.9,1.81772518]
[1641057836265,3.04625215,3730.3,3730.0,0.00170527]
[1641057836468,3.04625215,3730.3,3730.0,0.67199527]
[1641057836867,3.04625215,3730.3,3730.1,0.00113685]
[1641057839894,3.04625215,3730.4,3730.1,0.00113685]
[1641057840286,3.04625215,3730.4,3730.1,0.67139685]
[1641057840484,3.04738899,3730.5,3730.1,0.67139685]
[1641057840890,3.04625215,3730.3,3730.1,0.67139685]
[1641057841489,3.04625215,3730.4,3730.1,0.67139685]
[1641057842090,3.04738899,3730.5,3730.1,0.67139685]
[1641057844539,3.04738899,3730.5,3730.2,0.67025]
[1641057845442,0.00113684,3730.5,3730.2,0.67025]
[1641057848998,0.00113684,3730.5,3730.2,2.48797518]
[1641057849596,0.00113684,3730.5,3730.2,3.72957302]
[1641057850000,0.00113684,3730.5,3730.2,4.39972302]
[1641057850197,0.00113684,3730.5,3730.3,0.67015]
[1641057850598,0.00113684,3730.5,3730.3,1.3403079]
[1641057852442,0.00113684,3730.5,3730.4,8.96865653]
[1641057852647,0.00113684,3730.5,3730.4,9.98067165]
[1641057852843,0.00113684,3730.5,3730.4,10.86627165]
[1641057853240,3.04613958,3730.8,3730.5,6.05]
[1641057853440,2.7,3730.9,3730.7,1.3398463]
[1641057853642,2.7,3730.9,3730.8,7.26570136]
[1641057853841,2.7,3730.9,3730.8,7.56570136]
[1641057854043,2.7022737,3730.9,3730.8,8.86570136]
[1641057854901,2.7022737,3730.9,3730.8,9.91183365]
[1641057860844,2.43204634,3730.9,3730.8,11.72538642]
[1641057861245,2.43204634,3730.9,3730.8,9.91183365]
[1641057862602,2.43204634,3730.9,3730.8,11.72538642]
[1641057862802,0.05469046,3731.4,3731.0,0.66985]
[1641057863005,5.92985079,3733.0,3731.3,3.11231185]
[1641057863204,5.92985079,3733.0,3731.4,1.45]
[1641057863402,4.56860296,3733.0,3731.5,3.03192066]
[1641057863603,1.35285558,3732.9,3731.6,1.387]
[1641057863800,1.35285558,3732.9,3731.7,2.29090617]
[1641057864003,0.01080004,3732.8,3731.8,0.387]
[1641057864201,0.01080004,3732.8,3731.9,2.25547331]
[1641057864402,0.01023162,3732.7,3732.3,0.66977]
[1641057864601,0.01023162,3732.7,3732.3,3.58433804]
[1641057864801,1.35285558,3732.9,3732.3,0.387]
[1641057864802,0.0096632,3732.6,3732.3,0.387]
[1641057865202,0.00909477,3732.5,3732.3,2.23624736]
[1641057865502,0.00852635,3732.4,3732.3,0.387]
[1641057871093,2.70852635,3732.4,3732.3,0.387]
[1641057874943,2.70852635,3732.4,3731.9,1.98674609]
[1641057875343,0.00795793,3732.3,3732.2,0.66987]
[1641057875543,0.00795793,3732.3,3731.9,1.98674609]
[1641057876047,0.0073895,3732.2,3731.9,1.98674609]
[1641057876444,0.00682108,3732.1,3731.9,1.98674609]
[1641057876744,0.00625266,3732.0,3731.9,1.98674609]
[1641057876944,0.00625266,3732.0,3731.8,1.40229]
[1641057877145,0.00625266,3732.0,3731.7,0.6698839]
[1641057877146,0.00795793,3732.0,3731.6,3.2244]
[1641057877402,0.00568423,3731.9,3731.5,0.22838778]
[1641057877604,0.00568423,3731.9,3731.5,0.28264296]
[1641057877802,0.00511581,3731.8,3731.5,0.28264296]
[1641057878203,1.08284886,3731.7,3731.5,0.05425518]
[1641057878608,0.00397896,3731.6,3731.5,0.05425518]
[1641057879203,0.00397896,3731.6,3731.1,0.3]
[1641057879404,0.00397896,3731.6,3731.0,0.67006]
[1641057879708,0.00341054,3731.5,3731.1,0.3]
[1641057880205,0.00284212,3731.4,3731.2,0.3]
[1641057880706,0.00227369,3731.3,3731.2,0.3]
[1641057881943,2.70227369,3731.3,3731.2,0.3]
[1641057887196,2.70227369,3731.3,3731.2,2.11263609]
[1641057890345,2.70227369,3731.3,3731.2,0.3]
[1641057891546,2.70227369,3731.3,3731.0,0.67006]
[1641057891947,0.00170527,3731.2,3731.0,0.67006]
[1641057892401,0.00113685,3731.1,3731.0,0.67006]
[1641057898755,2.39643685,3731.3,3731.0,0.67006]
[1641057901196,2.39643685,3731.3,3731.1,0.6700137]
[1641057902600,2.39643685,3731.3,3731.0,1.67006]
[1641057902801,2.39643685,3731.3,3731.0,0.67006]
[1641057903856,3.04570127,3731.2,3731.0,0.67006]
[1641057904257,2.39643685,3731.3,3731.0,1.3401009]
[1641057907703,2.39643685,3731.3,3731.1,1.81899915]
[1641057913643,2.39643685,3731.3,3731.0,3.15910005]
[1641057914044,2.39643685,3731.3,3731.1,0.3]
[1641057914245,2.39643685,3731.3,3731.1,0.6700199]
[1641057914444,2.39643685,3731.3,3731.2,0.3]
[1641057914645,2.39643685,3731.3,3731.2,0.987]
[1641057914894,2.39757369,3731.3,3731.2,8.68514037]
[1641057915102,1.36124783,3732.3,3731.4,6.05]
[1641057915297,1.36124783,3732.3,3732.0,0.0121713]
[1641057915497,1.36124783,3732.3,3732.1,0.387]
[1641057915697,1.36124783,3732.3,3732.2,6.13539977]
[1641057915896,3.3554,3733.6,3732.2,6.52239977]
[1641057915897,3.0448092,3733.0,3732.2,6.52239977]
[1641057916097,3.0448092,3733.0,3732.5,1.3393524]
[1641057916300,3.0448092,3733.0,3732.6,2.09418298]
[1641057916497,3.0448092,3733.0,3732.8,0.66968]
[1641057916498,3.09863378,3733.0,3732.8,0.66968]
[1641057916699,3.09863378,3733.0,3732.9,1.88920126]
[1641057917097,3.10829698,3733.0,3732.9,1.88920126]
[1641057917299,0.0096632,3733.0,3732.8,1.33936]
[1641057917500,0.0096632,3733.0,3732.9,1.8526933]
[1641057917704,3.0448092,3733.2,3732.9,1.8526933]
[1641057917901,3.0448092,3732.9,3732.8,3.54230732]
[1641057918102,3.0448092,3732.9,3732.8,3.92930732]
[1641057918402,3.0448092,3732.9,3732.8,4.25962732]
[1641057918665,0.01023162,3733.1,3732.8,4.25962732]
[1641057918864,0.01023162,3733.1,3732.9,0.6697]
[1641057919065,3.0544724,3733.0,3732.9,1.3393907]
[1641057919263,3.0544724,3733.0,3732.9,3.20718443]
[1641057919465,3.0544724,3733.0,3732.9,1.3393907]
[1641057919664,3.0544724,3733.0,3732.9,2.5515889]
[1641057920767,3.0544724,3733.0,3732.9,0.6697]
[1641057920966,3.0544724,3733.0,3732.4,1.81899915]
[1641057921366,3.0544724,3733.0,3732.3,3.15855915]
[1641057921367,0.00909478,3732.9,3732.3,3.15855915]
[1641057921865,0.00852635,3732.8,3732.3,3.15855915]
[1641057922065,3.05333555,3732.8,3732.3,1.33956]
[1641057922304,0.00795793,3732.7,3732.3,1.33956]
[1641057922511,3.05276713,3732.7,3732.3,1.33956]
[1641057922712,0.00738951,3732.6,3732.3,1.33956]
[1641057923113,0.00682108,3732.5,3732.3,1.33956]
[1641057923514,0.00625266,3732.4,3732.3,1.33956]
[1641057924311,3.05106186,3732.4,3732.3,1.33956]
[1641057925913,3.05106186,3732.4,3732.1,2.48887915]
[1641057926159,3.05106186,3732.4,3732.2,1.89040441]
[1641057926359,0.00568424,3732.3,3732.1,2.48887915]
[1641057926560,3.05049344,3732.3,3732.1,0.66988]
[1641057926759,0.00511581,3732.2,3732.1,2.55505705]
[1641057926960,0.00511581,3732.2,3732.1,0.66988]
[1641057927160,0.00511581,3732.2,3732.1,2.5522519]
[1641057927361,0.00511581,3732.2,3732.1,2.53399373]
[1641057927562,0.00511581,3732.2,3732.1,2.54590601]
[1641057927762,0.00511581,3732.2,3732.1,2.52931988]
[1641057928464,3.05002805,3732.2,3732.1,7.04831903]
[1641057928862,3.05002805,3732.2,3732.1,7.43531903]
[1641057929062,0.00511581,3732.2,3732.1,5.61631988]
[1641057929664,0.00511581,3732.2,3732.1,6.28610988]
[1641057930301,0.00511581,3732.2,3732.1,7.58610988]
[1641057937303,0.00511581,3732.2,3732.1,10.93610988]
[1641057937906,2.7,3732.7,3732.1,7.58610988]
[1641057938107,2.7,3732.7,3732.4,2.6782589]
[1641057938309,2.7,3732.7,3732.5,6.20676111]
[1641057938310,0.0022737,3732.6,3732.5,6.20676111]
[1641057938506,0.0022737,3732.6,3732.5,8.83357771]
[1641057939206,0.0022737,3732.6,3732.5,10.84224771]
[1641057939409,11.4734,3734.6,3732.5,10.84224771]
[1641057939410,11.4734,3734.6,3732.7,7.97924927]
[1641057939607,3.9438,3734.6,3733.9,0.6694188]
[1641057939807,3.9438,3734.6,3733.8,1.3388376]
[1641057939808,0.00852635,3734.1,3734.0,0.387]
[1641057940005,0.00852635,3734.1,3734.0,0.687]
[1641057940406,0.00852635,3734.1,3734.0,1.75296781]
[1641057941065,1.21402039,3734.9,3734.0,1.75296781]
[1641057941066,0.97254674,3734.9,3734.0,1.75296781]
[1641057941261,0.97254674,3734.9,3734.4,0.669402]
[1641057941461,0.00397896,3734.8,3734.4,0.669402]
[1641057941863,0.00341054,3734.7,3734.4,0.669402]
[1641057942263,0.00284212,3734.6,3734.4,0.669402]
[1641057942562,0.00227369,3734.5,3734.4,0.669402]
[1641057942764,0.00227369,3734.5,3734.4,3.78331409]
[1641057943163,0.00227369,3734.5,3734.4,4.78331409]
[1641057943562,0.00227369,3734.5,3734.4,3.48331409]
[1641057946211,0.00227369,3734.5,3734.4,2.81394409]
[1641057949967,0.00227369,3734.5,3734.1,1.33876]
[1641057950170,0.00227369,3734.5,3734.1,3.18859453]
[1641057950371,0.00170527,3734.4,3734.0,1.45296781]
[1641057950570,0.00170527,3734.4,3733.9,2.52732556]
[1641057950768,0.00113685,3734.3,3733.7,5.09349988]
[1641057950969,0.00113685,3734.3,3733.7,3.2363]
[1641057951179,0.00284212,3734.6,3733.8,0.00170527]
[1641057951569,0.66957,3734.8,3733.6,1.85357853]
[1641057951570,1.35919381,3734.0,3733.6,1.85357853]
[1641057951773,1.35919381,3734.0,3733.7,0.00227369]
[1641057951971,0.00341054,3734.7,3733.7,0.00227369]
[1641057952171,0.00341054,3734.7,3733.6,2.4725471]
[1641057952428,6.81957,3734.9,3733.6,2.4725471]
[1641057952429,0.00511581,3734.6,3733.6,2.4725471]
[1641057952632,0.00511581,3734.6,3733.6,1.85073641]
[1641057952833,0.00454738,3734.5,3733.6,1.85073641]
[1641057953230,6.81957,3734.9,3733.6,1.85073641]
[1641057953231,0.00397896,3734.4,3733.6,1.85073641]
[1641057953432,1.41941858,3734.2,3733.6,1.85073641]
[1641057953634,1.41941858,3734.2,3733.5,1.33897]
[1641057953832,0.00227369,3734.1,3733.5,1.33897]
[1641057954031,0.00227369,3734.1,3733.6,1.83495388]
[1641057954232,0.00170527,3734.0,3733.5,1.33897]
[1641057954435,0.00170527,3734.0,3733.6,1.85264192]
[1641057954631,0.00113684,3733.9,3733.6,1.86934595]
[1641057955030,0.00227369,3734.1,3733.6,1.86934595]
[1641057955231,0.00227369,3734.1,3733.6,1.83002811]
[1641057955431,0.00170527,3734.0,3733.6,1.83002811]
[1641057955930,0.00113684,3733.9,3733.6,1.83002811]
[1641057956154,0.00113684,3733.9,3733.7,1.79629509]
[1641057956353,1.36124783,3734.6,3733.7,1.79629509]
[1641057956354,1.18647422,3734.3,3733.7,1.79629509]
[1641057956758,0.00284211,3734.2,3733.5,2.0085153]
[1641057956958,0.00284211,3734.2,3733.6,1.84797055]
[1641057957153,0.00227369,3734.1,3733.6,1.84797055]
[1641057957560,0.00170527,3734.0,3733.6,1.85895567]
[1641057957960,0.00113684,3733.9,3733.6,1.85895567]
[1641057958362,0.00568423,3734.7,3733.6,1.85895567]
[1641057958563,3.04940378,3734.7,3733.6,1.85895567]
[1641057958764,1.07525461,3734.3,3733.6,1.82854523]
[1641057959064,0.00284211,3734.2,3733.6,1.88536006]
[1641057959464,0.00227369,3734.1,3733.6,1.88536006]
[1641057959665,0.00227369,3734.1,3733.6,1.87600123]
[1641057959913,0.00170527,3734.0,3733.6,1.84451605]
[1641057960316,0.00113684,3733.9,3733.7,0.66953]
[1641057960515,0.00113684,3733.9,3733.8,1.85505457]
[1641057960714,0.00284211,3734.2,3733.8,1.85505457]
[1641057960915,0.00113684,3733.9,3733.8,1.85505457]
[1641057961118,0.00227369,3734.1,3733.8,1.85505457]
[1641057961318,0.00113684,3733.9,3733.8,2.15505457]
[1641057961515,0.00170527,3734.0,3733.8,2.15505457]
[1641057961714,6.15,3734.9,3733.9,6.57465003]
[1641057961915,6.15,3734.9,3734.2,0.66945]
[1641057961916,1.17900646,3734.7,3734.2,0.66945]
[1641057962117,1.17900646,3734.7,3734.3,1.8859104]
[1641057962316,0.00625265,3734.8,3734.3,1.8859104]
[1641057962716,0.00568423,3734.7,3734.0,2.16171364]
[1641057963117,0.00511581,3734.6,3734.0,2.16171364]
[1641057963319,0.00511581,3734.6,3734.3,0.6694152]
[1641057963560,0.00454738,3734.5,3734.4,1.89697707]
[1641057965157,0.00454738,3734.5,3734.4,2.19697707]
[1641057965355,0.00454738,3734.5,3734.4,0.3]
[1641057965557,7.06801404,3734.9,3734.4,0.3]
[1641057965757,5.80454738,3734.9,3734.4,0.3]
[1641057965959,0.00170527,3734.8,3734.4,2.12726342]
[1641057966357,0.00113685,3734.7,3734.4,2.12726342]
[1641057966756,0.00113685,3734.7,3734.4,0.3]
[1641057967811,0.00113685,3734.7,3734.4,2.13216286]
[1641057968011,0.00113685,3734.7,3734.4,0.3]
[1641057972965,0.00113685,3734.7,3734.4,0.6]
[1641057973965,1.16424679,3734.9,3734.4,0.6]
[1641057974167,1.16424679,3734.9,3734.5,0.00113685]
[1641057979153,3.0434239,3734.8,3734.5,0.00113685]
[1641057981455,4.40467173,3735.1,3734.5,0.00113685]
[1641057981655,4.40467173,3735.1,3734.7,0.66938]
[1641057981855,0.00113685,3734.9,3734.7,0.66938]
[1641057984211,0.00113685,3734.9,3734.5,0.00113685]
[1641057984812,1.36238468,3734.9,3734.5,0.00113685]
[1641057985415,1.36238468,3734.9,3734.6,0.66941]
[1641057986069,0.00113685,3734.9,3734.6,0.66941]
[1641057986466,3.0434239,3734.8,3734.6,0.66941]
[1641057986866,0.00113685,3734.9,3734.6,0.66941]
[1641057988073,0.00113685,3734.9,3734.6,1.3387836]
[1641057988473,3.04456075,3734.9,3734.7,0.66937]
[1641057989808,3.04456075,3734.9,3734.7,1.33872]
[1641057990010,0.00113685,3734.9,3734.7,1.33872]
[1641057990413,3.0434239,3734.8,3734.7,1.33872]
[1641057991010,3.04456075,3734.9,3734.7,1.33872]
[1641057991410,3.0434239,3734.8,3734.7,1.33872]
[1641057991611,3.0434239,3734.8,3734.7,2.0080738]
[1641057991811,0.00113685,3734.9,3734.7,2.0080738]
[1641057992513,0.00113685,3734.9,3734.7,1.3387238]
[1641057992914,0.00113685,3734.9,3734.7,0.66937]
[1641057996765,0.00113685,3734.9,3734.7,2.0080927]
[1641057996973,0.00113685,3734.9,3734.8,5.987]
[1641057997166,0.00113685,3734.9,3734.8,8.11654334]
[1641057997433,0.00113685,3734.9,3734.8,9.11654334]
[1641057997631,0.00113685,3734.9,3734.8,10.19106058]
[1641057998030,0.00113685,3734.9,3734.8,11.95312238]
[1641057999530,0.00113685,3734.9,3734.8,10.65312238]
[1641057999730,0.00113685,3734.9,3734.8,11.65312238]
[1641058000729,0.00113685,3734.9,3734.8,12.25312238]
[1641058001172,0.00113685,3734.9,3734.8,11.95312238]
[1641058001368,0.00113685,3734.9,3734.8,12.25312238]
[1641058001568,0.00113685,3734.9,3734.8,14.04941747]
[1641058002169,0.00113685,3734.9,3734.8,12.25312238]
[1641058002973,0.00113685,3734.9,3734.8,13.22482238]
[1641058003675,0.00113685,3734.9,3734.8,13.45310268]
[1641058004475,3.04296644,3735.8,3734.9,6.05]
[1641058004673,3.04296644,3735.8,3735.3,0.66912]
[1641058004930,0.00454738,3735.7,3735.5,0.6690445]
[1641058005126,0.00454738,3735.7,3735.6,8.69006514]
[1641058005327,6.15,3735.7,3735.6,9.63816514]
[1641058005526,6.15,3735.7,3735.6,8.3851]
[1641058005726,6.15,3735.7,3735.6,12.43466162]
[1641058005927,2.3712791,3735.7,3735.6,12.43466162]
[1641058006330,3.04296644,3735.8,3735.6,12.43466162]
[1641058006528,6.15,3736.7,3735.7,3.17944013]
[1641058006728,6.15,3736.7,3736.2,0.66906]
[1641058007028,0.00852635,3736.4,3736.3,0.66905]
[1641058007436,0.00852635,3736.4,3736.3,2.53397085]
[1641058007632,0.00852635,3736.4,3736.3,0.66905]
[1641058007831,0.00852635,3736.4,3736.3,2.51352265]
[1641058008032,0.00852635,3736.4,3736.3,0.66905]
[1641058008232,3.05057723,3736.4,3736.3,0.66905]
[1641058008572,0.00852635,3736.4,3736.3,2.51607379]
[1641058009073,3.05057723,3736.4,3736.3,2.51607379]
[1641058009671,3.05057723,3736.4,3736.3,0.66905]
[1641058010072,3.05057723,3736.4,3736.3,2.51345922]
[1641058010272,3.05057723,3736.4,3736.3,2.50055364]
[1641058011478,3.05057723,3736.4,3736.3,2.80055364]
[1641058012517,3.05057723,3736.4,3736.3,3.80055364]
[1641058012718,3.05057723,3736.4,3736.3,2.80055364]
[1641058012919,3.05057723,3736.4,3736.2,1.72507]
[1641058013118,3.05057723,3736.4,3736.2,1.33807]
[1641058013319,0.00795793,3736.3,3736.2,1.33807]
[1641058013520,0.00795793,3736.3,3736.1,1.78421078]
[1641058013820,0.0073895,3736.2,3736.1,1.78421078]
[1641058014024,0.0073895,3736.2,3735.9,2.45339078]
[1641058014221,0.0073895,3736.2,3735.9,3.12256078]
[1641058014420,3.04205088,3736.3,3735.9,3.12256078]
[1641058014421,0.00682108,3736.1,3735.9,3.12256078]
[1641058014622,3.04887196,3736.1,3736.0,1.82909383]
[1641058014922,3.04205088,3736.1,3736.0,1.84150145]
[1641058015120,3.04205088,3736.1,3736.0,2.14150145]
[1641058015324,3.04205088,3736.1,3736.0,4.49764145]
[1641058015925,3.04205088,3736.9,3736.4,0.66906]
[1641058016186,3.04205088,3736.9,3736.4,1.33812]
[1641058016385,0.0096632,3736.6,3736.4,1.33812]
[1641058016592,0.0096632,3736.6,3736.4,0.66906]
[1641058016786,0.00909477,3736.5,3736.4,0.66906]
[1641058017189,3.05110365,3736.5,3736.4,0.66906]
[1641058018498,0.00909477,3736.5,3736.4,0.66906]
[1641058020135,0.00909477,3736.5,3736.0,0.72372194]
[1641058020334,0.00909477,3736.5,3736.0,0.05458194]
[1641058020532,0.00852635,3736.4,3736.0,0.05458194]
[1641058020932,0.00795793,3736.3,3736.0,0.05458194]
[1641058021133,1.34203688,3736.2,3736.0,0.05458194]
[1641058021334,1.34942638,3736.2,3735.3,10.56494527]
[1641058021531,0.00682108,3736.1,3735.3,8.72557257]
[1641058021734,0.00682108,3736.1,3735.7,0.66921]
[1641058021931,0.00625266,3736.0,3735.7,0.66921]
[1641058022331,0.00568423,3735.9,3735.7,1.3384]
[1641058022737,0.00511581,3735.8,3735.7,1.3384]
[1641058023139,0.00511581,3735.8,3735.7,3.17646587]
[1641058023337,0.00511581,3735.8,3735.7,3.47646587]
[1641058027079,0.00511581,3735.8,3735.7,1.6384]
[1641058027532,0.00511581,3735.8,3735.7,3.21811517]
[1641058027934,0.00511581,3735.8,3735.7,2.54892517]
[1641058028334,0.00511581,3735.8,3735.7,0.66921]
[1641058030337,0.00511581,3735.8,3735.7,2.51955077]
[1641058030539,0.00511581,3735.8,3735.7,0.66921]
[1641058030937,0.00511581,3735.8,3735.7,2.82533741]
[1641058031776,0.00511581,3735.8,3735.7,0.96921]
[1641058032178,0.00511581,3735.8,3735.7,2.81051792]
[1641058032579,0.00511581,3735.8,3735.7,0.96921]
[1641058032780,0.00511581,3735.8,3735.7,2.81246735]
[1641058033081,0.00511581,3735.8,3735.7,0.96921]
[1641058033481,0.00511581,3735.8,3735.7,2.83455088]
[1641058034182,0.00511581,3735.8,3735.7,2.53455088]
[1641058034481,0.00511581,3735.8,3735.7,2.50643257]
[1641058034688,0.00511581,3735.8,3735.5,0.66919]
[1641058034689,0.00511581,3735.8,3735.5,0.66921]
[1641058034942,0.00511581,3735.8,3735.3,7.499]
[1641058035141,0.00454738,3735.7,3735.3,7.499]
[1641058035541,0.00397896,3735.6,3735.3,7.499]
[1641058035940,0.00341054,3735.5,3735.3,7.499]
[1641058036340,0.00284211,3735.4,3735.3,7.499]
[1641058048091,2.60284211,3735.4,3735.3,7.499]
[1641058048391,3.27228211,3735.4,3735.3,7.499]
[1641058048590,4.30959383,3735.4,3735.3,7.499]
[1641058048890,7.35220655,3735.4,3735.3,7.499]
[1641058058752,4.75220655,3735.4,3735.3,7.499]
[1641058059353,3.04545483,3735.4,3735.3,7.499]
[1641058060155,3.04545483,3735.4,3735.3,9.77453956]
[1641058060459,0.00284211,3735.4,3735.3,7.886]
[1641058061289,0.00284211,3735.4,3735.3,10.16153956]
[1641058061490,0.00284211,3735.4,3735.3,7.886]
[1641058062094,0.00284211,3735.4,3735.3,10.16153956]
[1641058064097,0.00284211,3735.4,3735.3,11.94462203]
[1641058065237,0.00284211,3735.4,3735.3,10.16153956]
[1641058066639,3.04261272,3736.2,3735.3,11.46153956]
[1641058066842,3.04261272,3736.2,3735.5,1.09617295]
[1641058067041,0.00682108,3736.1,3735.5,1.09617295]
[1641058067239,0.00682108,3736.1,3735.5,2.95449609]
[1641058067438,0.00625266,3736.0,3735.5,2.95449609]
[1641058067741,0.00568423,3735.9,3735.5,2.95449609]
[1641058068139,0.00511581,3735.8,3735.5,2.95449609]
[1641058068601,0.00454738,3735.7,3735.5,2.95449609]
[1641058068800,0.00454738,3735.7,3735.5,1.09617295]
[1641058069007,0.00397896,3735.6,3735.5,1.09617295]
[1641058069608,0.00397896,3735.6,3735.5,2.98354893]
[1641058069609,3.04659168,3735.6,3735.5,2.98354893]
[1641058069808,3.04659168,3735.6,3735.5,1.09617295]
[1641058070009,3.04659168,3735.6,3735.4,2.17445062]
[1641058070311,3.04261272,3735.6,3735.5,1.87747402]
[1641058070709,0.00397896,3735.6,3735.4,0.3]
[1641058070913,0.00397896,3735.6,3735.5,1.84476545]
[1641058071111,1.36124783,3736.3,3735.5,1.84476545]
[1641058071513,0.0073895,3736.2,3735.5,1.84476545]
[1641058071910,0.00682108,3736.1,3735.5,1.84476545]
[1641058072331,0.00625266,3736.0,3735.5,1.84476545]
[1641058072734,0.00568423,3735.9,3735.5,1.84476545]
[1641058073136,0.00511581,3735.8,3735.5,1.84476545]
[1641058073540,1.36124783,3736.2,3735.5,1.84476545]
[1641058073541,0.00454738,3735.7,3735.5,1.84476545]
[1641058073836,0.00397896,3735.6,3735.5,1.84476545]
[1641058074238,0.00397896,3735.6,3735.4,2.55137809]
[1641058074639,0.00341054,3735.5,3735.4,2.55137809]
[1641058075041,0.00341054,3735.5,3735.3,7.886]
[1641058075440,0.0633,3736.4,3735.3,7.499]
[1641058075441,0.00284211,3735.4,3735.3,7.499]
[1641058075842,0.00284211,3735.4,3735.3,9.39761672]
[1641058076283,0.00284211,3735.4,3735.3,7.499]
[1641058079846,0.00284211,3735.4,3735.3,9.39694254]
[1641058080047,0.00284211,3735.4,3735.3,9.39689849]
[1641058080348,0.00284211,3735.4,3735.3,9.3969866]
[1641058081847,0.00284211,3735.4,3735.3,7.499]
[1641058083254,0.00284211,3735.4,3735.3,9.41858625]
[1641058084488,0.00284211,3735.4,3735.3,10.52102084]
[1641058086093,0.00284211,3735.4,3735.3,9.41858625]
[1641058086494,0.00284211,3735.4,3735.3,7.499]
[1641058088575,0.41252258,3735.4,3735.3,7.499]
[1641058088971,3.45520962,3735.4,3735.3,7.499]
[1641058089176,3.04552915,3735.4,3735.3,7.499]
[1641058089874,0.00284211,3735.4,3735.3,7.499]
[1641058090273,3.04552915,3735.4,3735.3,7.499]
[1641058090672,0.00284211,3735.4,3735.3,7.499]
[1641058093394,0.00284211,3735.4,3735.3,7.50958887]
[1641058103556,5.45284211,3735.4,3735.3,7.50958887]
[1641058104757,6.12228211,3735.4,3735.3,7.50958887]
[1641058104956,6.07228211,3735.4,3735.3,7.50958887]
[1641058105459,9.11496915,3735.4,3735.3,7.50958887]
[1641058105859,11.81496915,3735.4,3735.3,7.50958887]
[1641058106284,6.41212704,3735.4,3735.3,7.50958887]
[1641058112550,6.41212704,3735.4,3735.3,7.2904504]
[1641058113993,5.74268704,3735.4,3735.3,7.2904504]
[1641058117335,5.69268704,3735.4,3735.3,7.2904504]
[1641058119340,7.05393487,3735.4,3735.3,7.2904504]
[1641058122090,5.69268704,3735.4,3735.3,7.2904504]